[Event "Titled Tuesday Blitz January 03 Early 2023"]
[White "Reprintsev, Alexander"]
[Black "Ankerst, Mihael"]
[WhiteFideId "14100541"]
[BlackFideId "14602369"]
[WhiteElo "2253"]
[BlackElo "2370"]
[Result "0-1"]
[Round "10"]
[TimeControl "180+2"]
[Date "2023.01.03"]
[WhiteClock "0:00:37"]
[BlackClock "0:01:27"]

1. e4 {[%clk 0:02:52]}  c5 {[%clk 0:02:58]} 2. b3 {[%clk 0:02:52]}  Nc6 {[%clk 0:02:58]} 3. Bb2 {[%clk 0:02:52]}  d6 {[%clk 0:02:58]} 4. Bb5 {[%clk 0:02:51]}  Bd7 {[%clk 0:02:58]} 5. Ne2 {[%clk 0:02:51]}  e5 {[%clk 0:02:59]} 6. O-O {[%clk 0:02:49]}  Nf6 {[%clk 0:02:59]} 7. f3 {[%clk 0:02:44]}  Be7 {[%clk 0:02:58]} 8. c3 {[%clk 0:02:44]}  a6 {[%clk 0:02:56]} 9. Bxc6 {[%clk 0:02:43]}  Bxc6 {[%clk 0:02:57]} 10. d4 {[%clk 0:02:44]}  O-O {[%clk 0:02:49]} 11. Nd2 {[%clk 0:02:43]}  b5 {[%clk 0:02:49]} 12. Rf2 {[%clk 0:02:38]}  Qc7 {[%clk 0:02:48]} 13. Nf1 {[%clk 0:02:34]}  Rac8 {[%clk 0:02:41]} 14. Ne3 {[%clk 0:02:26]}  Bd7 {[%clk 0:02:40]} 15. dxe5 {[%clk 0:02:21]}  dxe5 {[%clk 0:02:39]} 16. Ng3 {[%clk 0:02:22]}  Rfd8 {[%clk 0:02:31]} 17. Rd2 {[%clk 0:02:22]}  Be6 {[%clk 0:02:28]} 18. c4 {[%clk 0:02:21]}  Rxd2 {[%clk 0:02:26]} 19. Qxd2 {[%clk 0:02:21]}  Rd8 {[%clk 0:02:25]} 20. Nd5 {[%clk 0:02:21]}  Nxd5 {[%clk 0:02:16]} 21. exd5 {[%clk 0:02:20]}  Bd7 {[%clk 0:02:15]} 22. Re1 {[%clk 0:02:19]}  Bd6 {[%clk 0:02:15]} 23. Nh5 {[%clk 0:02:08]}  f6 {[%clk 0:02:09]} 24. Qf2 {[%clk 0:01:57]}  Bf5 {[%clk 0:02:05]} 25. Qh4 {[%clk 0:01:52]}  Qf7 {[%clk 0:02:03]} 26. g4 {[%clk 0:01:48]}  Bg6 {[%clk 0:02:02]} 27. Ng3 {[%clk 0:01:48]}  Re8 {[%clk 0:02:01]} 28. Nf5 {[%clk 0:01:45]}  Bf8 {[%clk 0:01:51]} 29. Kf2 {[%clk 0:01:44]}  Qd7 {[%clk 0:01:51]} 30. Ne3 {[%clk 0:01:41]}  Rb8 {[%clk 0:01:51]} 31. Bc3 {[%clk 0:01:39]}  Be7 {[%clk 0:01:45]} 32. Qg3 {[%clk 0:01:37]}  Bd6 {[%clk 0:01:45]} 33. h4 {[%clk 0:01:29]}  Bd3 {[%clk 0:01:44]} 34. cxb5 {[%clk 0:01:26]}  e4 {[%clk 0:01:42]} 35. f4 {[%clk 0:01:26]}  axb5 {[%clk 0:01:41]} 36. Nf5 {[%clk 0:01:22]}  b4 {[%clk 0:01:38]} 37. Bb2 {[%clk 0:01:19]}  c4 {[%clk 0:01:37]} 38. bxc4 {[%clk 0:01:18]}  Bc5+ {[%clk 0:01:37]} 39. Kg2 {[%clk 0:01:18]}  Bxc4 {[%clk 0:01:34]} 40. Rd1 {[%clk 0:01:12]}  Bxd5 {[%clk 0:01:28]} 41. Rxd5 {[%clk 0:01:11]}  Qxd5 {[%clk 0:01:27]} 42. Ba1 {[%clk 0:00:37]} 0-1


[Site "https://www.chess.com"]

[Event "Titled Tuesday Blitz January 03 Early 2023"]
[White "Kvaloy, Aksel Bu"]
[Black "Vifleemskaia, Svetlana"]
[WhiteFideId "1528815"]
[BlackFideId "4129490"]
[WhiteElo "2321"]
[BlackElo "1971"]
[Result "1-0"]
[Round "10"]
[TimeControl "180+2"]
[Date "2023.01.03"]
[WhiteClock "0:00:19"]
[BlackClock "0:00:02"]

1. d4 {[%clk 0:03:00]}  Nf6 {[%clk 0:02:59]} 2. c4 {[%clk 0:02:54]}  e6 {[%clk 0:02:59]} 3. g3 {[%clk 0:02:48]}  Bb4+ {[%clk 0:02:58]} 4. Bd2 {[%clk 0:02:46]}  Qe7 {[%clk 0:02:58]} 5. Bg2 {[%clk 0:02:41]}  Nc6 {[%clk 0:02:58]} 6. e3 {[%clk 0:02:38]}  O-O {[%clk 0:02:56]} 7. Ne2 {[%clk 0:02:28]}  a5 {[%clk 0:02:56]} 8. O-O {[%clk 0:02:25]}  Bxd2 {[%clk 0:02:55]} 9. Nxd2 {[%clk 0:02:25]}  d6 {[%clk 0:02:56]} 10. Nc3 {[%clk 0:02:22]}  e5 {[%clk 0:02:53]} 11. d5 {[%clk 0:02:21]}  Nb8 {[%clk 0:02:53]} 12. a3 {[%clk 0:02:16]}  Na6 {[%clk 0:02:39]} 13. b4 {[%clk 0:02:13]}  axb4 {[%clk 0:02:38]} 14. axb4 {[%clk 0:02:12]}  Bd7 {[%clk 0:02:38]} 15. Qb3 {[%clk 0:02:10]}  c5 {[%clk 0:02:37]} 16. b5 {[%clk 0:02:04]}  Nb4 {[%clk 0:02:37]} 17. e4 {[%clk 0:01:58]}  Nh5 {[%clk 0:01:58]} 18. Ne2 {[%clk 0:01:53]}  g6 {[%clk 0:01:55]} 19. f3 {[%clk 0:01:51]}  f5 {[%clk 0:01:51]} 20. h3 {[%clk 0:01:49]}  f4 {[%clk 0:01:48]} 21. g4 {[%clk 0:01:49]}  Nf6 {[%clk 0:01:45]} 22. Nc3 {[%clk 0:01:37]}  g5 {[%clk 0:01:44]} 23. Kf2 {[%clk 0:01:23]}  h5 {[%clk 0:01:41]} 24. Rh1 {[%clk 0:01:21]}  Kg7 {[%clk 0:01:36]} 25. Ke2 {[%clk 0:01:20]}  Kg6 {[%clk 0:01:23]} 26. Na2 {[%clk 0:01:18]}  Nxa2 {[%clk 0:01:10]} 27. Rxa2 {[%clk 0:01:19]}  Rxa2 {[%clk 0:01:03]} 28. Qxa2 {[%clk 0:01:20]}  Qd8 {[%clk 0:00:54]} 29. Qa7 {[%clk 0:01:16]}  Qb8 {[%clk 0:00:53]} 30. Ra1 {[%clk 0:01:05]}  Rc8 {[%clk 0:00:30]} 31. Nb1 {[%clk 0:00:59]}  Kf7 {[%clk 0:00:28]} 32. Nc3 {[%clk 0:00:59]}  Ke7 {[%clk 0:00:28]} 33. Kf2 {[%clk 0:00:55]}  Be8 {[%clk 0:00:23]} 34. Bf1 {[%clk 0:00:52]}  Bd7 {[%clk 0:00:22]} 35. Be2 {[%clk 0:00:52]}  Be8 {[%clk 0:00:19]} 36. Bd1 {[%clk 0:00:51]}  Bd7 {[%clk 0:00:18]} 37. Ba4 {[%clk 0:00:49]}  Be8 {[%clk 0:00:18]} 38. b6 {[%clk 0:00:49]}  Bxa4 {[%clk 0:00:17]} 39. Rxa4 {[%clk 0:00:45]}  h4 {[%clk 0:00:15]} 40. Nb5 {[%clk 0:00:44]}  Nd7 {[%clk 0:00:15]} 41. Ra1 {[%clk 0:00:38]}  Qxa7 {[%clk 0:00:12]} 42. bxa7 {[%clk 0:00:37]}  Nb6 {[%clk 0:00:11]} 43. Ke2 {[%clk 0:00:31]}  Ra8 {[%clk 0:00:10]} 44. Nc7 {[%clk 0:00:29]}  Rc8 {[%clk 0:00:09]} 45. a8=Q {[%clk 0:00:29]}  Nxa8 {[%clk 0:00:08]} 46. Nxa8 {[%clk 0:00:30]}  Rb8 {[%clk 0:00:03]} 47. Nb6 {[%clk 0:00:30]}  Kd8 {[%clk 0:00:03]} 48. Kd3 {[%clk 0:00:26]}  Kc7 {[%clk 0:00:03]} 49. Rb1 {[%clk 0:00:25]}  Rd8 {[%clk 0:00:02]} 50. Rb3 {[%clk 0:00:24]}  Rb8 {[%clk 0:00:02]} 51. Kc2 {[%clk 0:00:24]}  Rd8 {[%clk 0:00:02]} 52. Kb2 {[%clk 0:00:24]}  Re8 {[%clk 0:00:03]} 53. Ka3 {[%clk 0:00:24]}  Rd8 {[%clk 0:00:03]} 54. Ka4 {[%clk 0:00:24]}  Re8 {[%clk 0:00:03]} 55. Kb5 {[%clk 0:00:24]}  Rf8 {[%clk 0:00:04]} 56. Ra3 {[%clk 0:00:24]}  Re8 {[%clk 0:00:03]} 57. Ra8 {[%clk 0:00:18]}  Rxa8 {[%clk 0:00:01]} 58. Nxa8+ {[%clk 0:00:19]}  Kb8 {[%clk 0:00:02]} 59. Nb6 {[%clk 0:00:19]}  Kc7 {[%clk 0:00:02]} 60. Na4 {[%clk 0:00:19]} 1-0


[Site "https://www.chess.com"]

[Event "Titled Tuesday Blitz January 03 Early 2023"]
[White "Erzhanov, Arman"]
[Black "Gutierrez Anaya, Yeison Joel"]
[WhiteFideId "4138821"]
[BlackFideId "3903273"]
[WhiteElo "2228"]
[BlackElo "2125"]
[Result "1-0"]
[Round "10"]
[TimeControl "180+2"]
[Date "2023.01.03"]
[WhiteClock "0:01:42"]
[BlackClock "0:00:03"]

1. e4 {[%clk 0:03:00]}  c6 {[%clk 0:02:58]} 2. Nf3 {[%clk 0:02:57]}  d5 {[%clk 0:02:59]} 3. Nc3 {[%clk 0:02:57]}  g6 {[%clk 0:02:53]} 4. d4 {[%clk 0:02:56]}  dxe4 {[%clk 0:02:46]} 5. Nxe4 {[%clk 0:02:56]}  Nf6 {[%clk 0:02:42]} 6. Bd3 {[%clk 0:02:51]}  Bg7 {[%clk 0:02:34]} 7. O-O {[%clk 0:02:51]}  O-O {[%clk 0:02:34]} 8. c3 {[%clk 0:02:51]}  Nbd7 {[%clk 0:02:33]} 9. Re1 {[%clk 0:02:46]}  Nxe4 {[%clk 0:02:16]} 10. Rxe4 {[%clk 0:02:44]}  e5 {[%clk 0:02:00]} 11. dxe5 {[%clk 0:02:41]}  Re8 {[%clk 0:01:51]} 12. Bf4 {[%clk 0:02:39]}  Qa5 {[%clk 0:01:47]} 13. Qe2 {[%clk 0:02:33]}  Nc5 {[%clk 0:01:39]} 14. b4 {[%clk 0:02:29]}  Qa3 {[%clk 0:00:52]} 15. bxc5 {[%clk 0:02:26]}  Qxc3 {[%clk 0:00:52]} 16. Rc1 {[%clk 0:02:24]}  Qa3 {[%clk 0:00:52]} 17. Nd4 {[%clk 0:02:15]}  Rd8 {[%clk 0:00:36]} 18. Nb3 {[%clk 0:02:10]}  Bf5 {[%clk 0:00:20]} 19. Re3 {[%clk 0:02:10]}  Bxd3 {[%clk 0:00:15]} 20. Rxd3 {[%clk 0:02:10]}  Rxd3 {[%clk 0:00:16]} 21. Qxd3 {[%clk 0:02:11]}  Qxa2 {[%clk 0:00:16]} 22. h4 {[%clk 0:01:50]}  Bf8 {[%clk 0:00:13]} 23. h5 {[%clk 0:01:48]}  gxh5 {[%clk 0:00:09]} 24. e6 {[%clk 0:01:46]}  fxe6 {[%clk 0:00:07]} 25. Qg3+ {[%clk 0:01:46]}  Kf7 {[%clk 0:00:08]} 26. Rd1 {[%clk 0:01:42]}  Be7 {[%clk 0:00:03]} 27. Rd7 {[%clk 0:01:42]} 1-0


[Site "https://www.chess.com"]

[Event "Titled Tuesday Blitz January 03 Early 2023"]
[White "Samunenkov, Ihor"]
[Black "Alfaro, William"]
[WhiteFideId "14187086"]
[BlackFideId "6100457"]
[WhiteElo "2501"]
[BlackElo "2134"]
[Result "1-0"]
[Round "10"]
[TimeControl "180+2"]
[Date "2023.01.03"]
[WhiteClock "0:00:25"]
[BlackClock "0:00:16"]

1. d4 {[%clk 0:02:50]}  Nf6 {[%clk 0:02:59]} 2. c4 {[%clk 0:02:50]}  g6 {[%clk 0:02:59]} 3. Nf3 {[%clk 0:02:49]}  Bg7 {[%clk 0:02:59]} 4. g3 {[%clk 0:02:50]}  O-O {[%clk 0:03:00]} 5. Bg2 {[%clk 0:02:51]}  d5 {[%clk 0:03:00]} 6. cxd5 {[%clk 0:02:50]}  Nxd5 {[%clk 0:03:00]} 7. O-O {[%clk 0:02:51]}  Bg4 {[%clk 0:02:57]} 8. h3 {[%clk 0:02:37]}  Bxf3 {[%clk 0:02:51]} 9. Bxf3 {[%clk 0:02:38]}  c6 {[%clk 0:02:52]} 10. Nc3 {[%clk 0:02:36]}  e6 {[%clk 0:02:41]} 11. h4 {[%clk 0:02:28]}  Nd7 {[%clk 0:02:40]} 12. e4 {[%clk 0:02:23]}  Nxc3 {[%clk 0:02:37]} 13. bxc3 {[%clk 0:02:24]}  c5 {[%clk 0:02:37]} 14. e5 {[%clk 0:02:20]}  cxd4 {[%clk 0:02:37]} 15. cxd4 {[%clk 0:02:21]}  Qb6 {[%clk 0:02:37]} 16. Ba3 {[%clk 0:02:14]}  Rfc8 {[%clk 0:02:31]} 17. Rb1 {[%clk 0:02:12]}  Qa5 {[%clk 0:02:31]} 18. Bb4 {[%clk 0:02:05]}  Qa6 {[%clk 0:02:28]} 19. Qb3 {[%clk 0:01:40]}  Nb6 {[%clk 0:02:26]} 20. Bc5 {[%clk 0:01:38]}  Rab8 {[%clk 0:02:25]} 21. Bd6 {[%clk 0:01:22]}  Ra8 {[%clk 0:02:25]} 22. d5 {[%clk 0:01:22]}  exd5 {[%clk 0:02:23]} 23. Bxd5 {[%clk 0:01:23]}  Nxd5 {[%clk 0:02:23]} 24. Qxd5 {[%clk 0:01:23]}  Qc6 {[%clk 0:02:22]} 25. Qb3 {[%clk 0:01:19]}  b6 {[%clk 0:02:20]} 26. Rbc1 {[%clk 0:01:15]}  Qd7 {[%clk 0:02:15]} 27. Rcd1 {[%clk 0:01:10]}  Re8 {[%clk 0:02:10]} 28. h5 {[%clk 0:01:07]}  Qg4 {[%clk 0:02:09]} 29. hxg6 {[%clk 0:01:04]}  hxg6 {[%clk 0:02:09]} 30. Rfe1 {[%clk 0:00:55]}  Rad8 {[%clk 0:02:08]} 31. Rc1 {[%clk 0:00:53]}  Qg5 {[%clk 0:02:00]} 32. Rc7 {[%clk 0:00:48]}  Qf5 {[%clk 0:01:56]} 33. Re3 {[%clk 0:00:48]}  Bxe5 {[%clk 0:01:19]} 34. Bxe5 {[%clk 0:00:40]}  Rc8 {[%clk 0:00:56]} 35. Rf3 {[%clk 0:00:33]}  Rxc7 {[%clk 0:00:26]} 36. Rxf5 {[%clk 0:00:32]}  Rc1+ {[%clk 0:00:26]} 37. Kg2 {[%clk 0:00:32]}  gxf5 {[%clk 0:00:27]} 38. Qe3 {[%clk 0:00:32]}  Rc6 {[%clk 0:00:24]} 39. Qf4 {[%clk 0:00:29]}  Rce6 {[%clk 0:00:17]} 40. Bc3 {[%clk 0:00:28]}  Rc8 {[%clk 0:00:16]} 41. Qd4 {[%clk 0:00:25]} 1-0


[Site "https://www.chess.com"]

[Event "Titled Tuesday Blitz January 03 Early 2023"]
[White "Tanenbaum, Zachary"]
[Black "Shuvalov, Evgenij"]
[WhiteFideId "2060850"]
[BlackFideId "4187237"]
[WhiteElo "2261"]
[BlackElo "2038"]
[Result "1-0"]
[Round "10"]
[TimeControl "180+2"]
[Date "2023.01.03"]
[WhiteClock "0:00:26"]
[BlackClock "0:00:12"]

1. e4 {[%clk 0:03:00]}  e6 {[%clk 0:02:56]} 2. d4 {[%clk 0:03:01]}  d5 {[%clk 0:02:56]} 3. Nc3 {[%clk 0:03:02]}  Bb4 {[%clk 0:02:56]} 4. exd5 {[%clk 0:03:02]}  exd5 {[%clk 0:02:55]} 5. Bd3 {[%clk 0:03:02]}  Nc6 {[%clk 0:02:55]} 6. a3 {[%clk 0:03:03]}  Bxc3+ {[%clk 0:02:54]} 7. bxc3 {[%clk 0:03:04]}  Nge7 {[%clk 0:02:54]} 8. Nf3 {[%clk 0:03:01]}  Bg4 {[%clk 0:02:54]} 9. Rb1 {[%clk 0:02:59]}  b6 {[%clk 0:02:53]} 10. O-O {[%clk 0:02:59]}  h6 {[%clk 0:02:41]} 11. h3 {[%clk 0:02:58]}  Bh5 {[%clk 0:02:34]} 12. Re1 {[%clk 0:02:46]}  O-O {[%clk 0:02:34]} 13. Bf4 {[%clk 0:02:38]}  Re8 {[%clk 0:02:28]} 14. Qd2 {[%clk 0:02:25]}  Bxf3 {[%clk 0:02:26]} 15. gxf3 {[%clk 0:02:26]}  Ng6 {[%clk 0:02:22]} 16. Rxe8+ {[%clk 0:02:24]}  Qxe8 {[%clk 0:02:22]} 17. Bxc7 {[%clk 0:02:25]}  Qd7 {[%clk 0:02:11]} 18. Bg3 {[%clk 0:02:25]}  Qxh3 {[%clk 0:02:10]} 19. Qe3 {[%clk 0:01:54]}  Qd7 {[%clk 0:01:50]} 20. Re1 {[%clk 0:01:52]}  Nce7 {[%clk 0:01:20]} 21. c4 {[%clk 0:01:51]}  Nf5 {[%clk 0:01:15]} 22. Bxf5 {[%clk 0:01:44]}  Qxf5 {[%clk 0:01:16]} 23. cxd5 {[%clk 0:01:42]}  Qxd5 {[%clk 0:01:17]} 24. Qe4 {[%clk 0:01:42]}  Qd8 {[%clk 0:01:11]} 25. c4 {[%clk 0:01:39]}  Rc8 {[%clk 0:01:11]} 26. d5 {[%clk 0:01:35]}  Qd7 {[%clk 0:01:08]} 27. f4 {[%clk 0:01:17]}  Nf8 {[%clk 0:00:54]} 28. f5 {[%clk 0:01:16]}  Nh7 {[%clk 0:00:53]} 29. Bh4 {[%clk 0:00:52]}  Ng5 {[%clk 0:00:45]} 30. Bxg5 {[%clk 0:00:44]}  hxg5 {[%clk 0:00:46]} 31. Kg2 {[%clk 0:00:44]}  b5 {[%clk 0:00:37]} 32. cxb5 {[%clk 0:00:38]}  Qxb5 {[%clk 0:00:35]} 33. d6 {[%clk 0:00:37]}  Rd8 {[%clk 0:00:29]} 34. Rd1 {[%clk 0:00:33]}  Qd7 {[%clk 0:00:24]} 35. Rd3 {[%clk 0:00:29]}  Re8 {[%clk 0:00:22]} 36. Qd5 {[%clk 0:00:27]}  Kf8 {[%clk 0:00:15]} 37. Rh3 {[%clk 0:00:26]}  Kg8 {[%clk 0:00:15]} 38. Rc3 {[%clk 0:00:25]}  g6 {[%clk 0:00:11]} 39. Rc7 {[%clk 0:00:23]}  Qxf5 {[%clk 0:00:09]} 40. Qxf5 {[%clk 0:00:23]}  gxf5 {[%clk 0:00:10]} 41. d7 {[%clk 0:00:24]}  Rf8 {[%clk 0:00:10]} 42. Rc8 {[%clk 0:00:24]}  f6 {[%clk 0:00:09]} 43. Rxf8+ {[%clk 0:00:24]}  Kxf8 {[%clk 0:00:10]} 44. d8=Q+ {[%clk 0:00:24]}  Kg7 {[%clk 0:00:11]} 45. Qc7+ {[%clk 0:00:25]}  Kg6 {[%clk 0:00:11]} 46. Qxa7 {[%clk 0:00:26]}  f4 {[%clk 0:00:12]} 47. Qd7 {[%clk 0:00:26]} 1-0


[Site "https://www.chess.com"]

[Event "Titled Tuesday Blitz January 03 Early 2023"]
[White "Quinones Garcia, Santiago"]
[Black "Khubukshanov, Erdem"]
[WhiteFideId "4408497"]
[BlackFideId "54114527"]
[WhiteElo "2248"]
[BlackElo "2382"]
[Result "0-1"]
[Round "10"]
[TimeControl "180+2"]
[Date "2023.01.03"]
[WhiteClock "0:01:21"]
[BlackClock "0:00:44"]

1. d4 {[%clk 0:02:28]}  d5 {[%clk 0:02:52]} 2. c4 {[%clk 0:02:26]}  e6 {[%clk 0:02:53]} 3. Nc3 {[%clk 0:02:25]}  c6 {[%clk 0:02:53]} 4. Nf3 {[%clk 0:02:24]}  Nf6 {[%clk 0:02:52]} 5. Bg5 {[%clk 0:02:23]}  h6 {[%clk 0:02:48]} 6. Bh4 {[%clk 0:02:23]}  dxc4 {[%clk 0:02:47]} 7. e4 {[%clk 0:02:21]}  g5 {[%clk 0:02:48]} 8. Bg3 {[%clk 0:02:21]}  b5 {[%clk 0:02:47]} 9. Qc2 {[%clk 0:02:18]}  Bb7 {[%clk 0:02:45]} 10. b3 {[%clk 0:02:16]}  b4 {[%clk 0:02:42]} 11. Na4 {[%clk 0:02:14]}  c3 {[%clk 0:02:42]} 12. Bd3 {[%clk 0:02:13]}  Nbd7 {[%clk 0:02:39]} 13. O-O {[%clk 0:02:11]}  Be7 {[%clk 0:02:27]} 14. h4 {[%clk 0:01:53]}  gxh4 {[%clk 0:02:09]} 15. Bxh4 {[%clk 0:01:50]}  Nh5 {[%clk 0:02:09]} 16. Bxe7 {[%clk 0:01:48]}  Qxe7 {[%clk 0:02:10]} 17. e5 {[%clk 0:01:42]}  Rg8 {[%clk 0:01:57]} 18. Be4 {[%clk 0:01:42]}  O-O-O {[%clk 0:01:38]} 19. a3 {[%clk 0:01:41]}  f5 {[%clk 0:01:32]} 20. exf6 {[%clk 0:01:39]}  Ndxf6 {[%clk 0:01:32]} 21. axb4 {[%clk 0:01:40]}  Nxe4 {[%clk 0:00:46]} 22. Qxe4 {[%clk 0:01:40]}  c5 {[%clk 0:00:45]} 23. Qh4 {[%clk 0:01:31]}  Rxg2+ {[%clk 0:00:44]} 24. Kh1 {[%clk 0:01:22]}  Bxf3 {[%clk 0:00:43]} 25. Qxe7 {[%clk 0:01:22]}  Rxf2+ {[%clk 0:00:42]} 26. Kg1 {[%clk 0:01:21]}  Rg2+ {[%clk 0:00:43]} 27. Kh1 {[%clk 0:01:21]}  Ng3# {[%clk 0:00:44]} 0-1


[Site "https://www.chess.com"]

[Event "Titled Tuesday Blitz January 03 Early 2023"]
[White "Ginzburg, Yakov"]
[Black "Ibadov, Dashgyn"]
[WhiteFideId "4157176"]
[BlackFideId "24107514"]
[WhiteElo "2405"]
[BlackElo "2391"]
[Result "0-1"]
[Round "10"]
[TimeControl "180+2"]
[Date "2023.01.03"]
[WhiteClock "0:00:02"]
[BlackClock "0:00:19"]

1. d4 {[%clk 0:02:59]}  Nf6 {[%clk 0:02:58]} 2. Nf3 {[%clk 0:03:00]}  d5 {[%clk 0:02:58]} 3. g3 {[%clk 0:03:00]}  e6 {[%clk 0:02:56]} 4. Bg2 {[%clk 0:03:00]}  Be7 {[%clk 0:02:57]} 5. O-O {[%clk 0:03:00]}  O-O {[%clk 0:02:58]} 6. c4 {[%clk 0:03:01]}  c6 {[%clk 0:02:58]} 7. b3 {[%clk 0:03:00]}  b6 {[%clk 0:02:59]} 8. Bb2 {[%clk 0:03:00]}  Bb7 {[%clk 0:02:55]} 9. Nc3 {[%clk 0:03:00]}  Nbd7 {[%clk 0:02:55]} 10. Qc2 {[%clk 0:03:00]}  c5 {[%clk 0:02:53]} 11. dxc5 {[%clk 0:02:52]}  Nxc5 {[%clk 0:02:53]} 12. cxd5 {[%clk 0:02:49]}  Nxd5 {[%clk 0:02:53]} 13. Rad1 {[%clk 0:02:36]}  Qc7 {[%clk 0:02:36]} 14. Nxd5 {[%clk 0:02:33]}  Bxd5 {[%clk 0:02:37]} 15. b4 {[%clk 0:02:32]}  Na6 {[%clk 0:02:37]} 16. Qxc7 {[%clk 0:02:22]}  Nxc7 {[%clk 0:02:38]} 17. Ne5 {[%clk 0:02:19]}  Bxb4 {[%clk 0:02:30]} 18. Rc1 {[%clk 0:01:35]}  Bxg2 {[%clk 0:02:09]} 19. Kxg2 {[%clk 0:01:34]}  Rfc8 {[%clk 0:01:59]} 20. Nc6 {[%clk 0:01:32]}  Bc5 {[%clk 0:01:53]} 21. Rfd1 {[%clk 0:00:59]}  Nd5 {[%clk 0:01:49]} 22. e4 {[%clk 0:00:53]}  Ne3+ {[%clk 0:01:36]} 23. fxe3 {[%clk 0:00:48]}  Rxc6 {[%clk 0:01:37]} 24. Rd7 {[%clk 0:00:47]}  a5 {[%clk 0:01:31]} 25. Rcd1 {[%clk 0:00:34]}  h6 {[%clk 0:01:28]} 26. Kf3 {[%clk 0:00:31]}  Re8 {[%clk 0:01:19]} 27. Rb7 {[%clk 0:00:26]}  Re7 {[%clk 0:01:13]} 28. Rd8+ {[%clk 0:00:25]}  Kh7 {[%clk 0:01:13]} 29. Rbb8 {[%clk 0:00:26]}  Bd6 {[%clk 0:00:54]} 30. Ra8 {[%clk 0:00:23]}  Rc2 {[%clk 0:00:40]} 31. Rh8+ {[%clk 0:00:21]}  Kg6 {[%clk 0:00:40]} 32. Bxg7 {[%clk 0:00:21]}  Kxg7 {[%clk 0:00:33]} 33. Rag8+ {[%clk 0:00:20]}  Kf6 {[%clk 0:00:33]} 34. Rxh6+ {[%clk 0:00:20]}  Ke5 {[%clk 0:00:34]} 35. Rg5+ {[%clk 0:00:09]}  f5 {[%clk 0:00:34]} 36. g4 {[%clk 0:00:05]}  Rf7 {[%clk 0:00:23]} 37. h4 {[%clk 0:00:04]}  Bc5 {[%clk 0:00:23]} 38. Rgg6 {[%clk 0:00:02]}  fxe4+ {[%clk 0:00:19]} 39. Kg3 {[%clk 0:00:02]}  Rf3# {[%clk 0:00:19]} 0-1


[Site "https://www.chess.com"]

[Event "Titled Tuesday Blitz January 03 Early 2023"]
[White "Moreno Perez, Tobias Sebastian"]
[Black "Maevsky, Nikolay"]
[WhiteFideId "186716"]
[BlackFideId "4198220"]
[WhiteElo "2256"]
[BlackElo "2277"]
[Result "1-0"]
[Round "10"]
[TimeControl "180+2"]
[Date "2023.01.03"]
[WhiteClock "0:00:09"]
[BlackClock "0:00:38"]

1. d4 {[%clk 0:03:00]}  Nf6 {[%clk 0:02:59]} 2. Bf4 {[%clk 0:03:00]}  g6 {[%clk 0:02:57]} 3. Nc3 {[%clk 0:02:59]}  Bg7 {[%clk 0:02:51]} 4. e4 {[%clk 0:02:59]}  d6 {[%clk 0:02:51]} 5. Qd2 {[%clk 0:02:59]}  c6 {[%clk 0:02:50]} 6. f3 {[%clk 0:02:59]}  b5 {[%clk 0:02:49]} 7. Bh6 {[%clk 0:02:57]}  Bxh6 {[%clk 0:02:48]} 8. Qxh6 {[%clk 0:02:58]}  Nbd7 {[%clk 0:02:47]} 9. h4 {[%clk 0:02:56]}  Bb7 {[%clk 0:02:44]} 10. Nh3 {[%clk 0:02:49]}  b4 {[%clk 0:02:37]} 11. Ne2 {[%clk 0:02:47]}  Qa5 {[%clk 0:02:37]} 12. Qd2 {[%clk 0:02:43]}  c5 {[%clk 0:02:37]} 13. d5 {[%clk 0:02:39]}  Qc7 {[%clk 0:02:33]} 14. Nef4 {[%clk 0:02:29]}  h5 {[%clk 0:02:27]} 15. Ng5 {[%clk 0:02:29]}  Ne5 {[%clk 0:02:26]} 16. Bb5+ {[%clk 0:02:25]}  Nfd7 {[%clk 0:02:26]} 17. Nge6 {[%clk 0:02:21]}  Qb6 {[%clk 0:02:25]} 18. Ba4 {[%clk 0:02:03]}  Ba6 {[%clk 0:02:23]} 19. Ng5 {[%clk 0:01:40]}  Qa5 {[%clk 0:02:14]} 20. Bxd7+ {[%clk 0:01:33]}  Kxd7 {[%clk 0:02:10]} 21. b3 {[%clk 0:01:21]}  Qb6 {[%clk 0:02:02]} 22. a3 {[%clk 0:01:19]}  Rac8 {[%clk 0:01:52]} 23. Kf2 {[%clk 0:00:57]}  c4+ {[%clk 0:01:50]} 24. Kg3 {[%clk 0:00:58]}  cxb3 {[%clk 0:01:49]} 25. cxb3 {[%clk 0:00:54]}  bxa3 {[%clk 0:01:45]} 26. Rxa3 {[%clk 0:00:55]}  Bb5 {[%clk 0:01:45]} 27. Raa1 {[%clk 0:00:41]}  a6 {[%clk 0:01:45]} 28. Rac1 {[%clk 0:00:40]}  Qb7 {[%clk 0:01:30]} 29. Qd4 {[%clk 0:00:18]}  Rhf8 {[%clk 0:01:20]} 30. Qe3 {[%clk 0:00:09]}  Rxc1 {[%clk 0:01:17]} 31. Rxc1 {[%clk 0:00:09]}  Rc8 {[%clk 0:01:16]} 32. Rxc8 {[%clk 0:00:09]}  Kxc8 {[%clk 0:01:16]} 33. Nxf7 {[%clk 0:00:07]}  Nxf7 {[%clk 0:01:14]} 34. Nxg6 {[%clk 0:00:08]}  Qc7 {[%clk 0:01:07]} 35. Qf4 {[%clk 0:00:07]}  Ne5 {[%clk 0:01:00]} 36. Qf8+ {[%clk 0:00:05]}  Kb7 {[%clk 0:01:01]} 37. Nxe5 {[%clk 0:00:03]}  dxe5 {[%clk 0:01:00]} 38. Qf7 {[%clk 0:00:04]}  a5 {[%clk 0:00:53]} 39. Qxh5 {[%clk 0:00:02]}  Bf1 {[%clk 0:00:41]} 40. Qf7 {[%clk 0:00:03]}  Kb6 {[%clk 0:00:40]} 41. Qe6+ {[%clk 0:00:03]}  Kb5 {[%clk 0:00:39]} 42. h5 {[%clk 0:00:03]}  Qc2 {[%clk 0:00:36]} 43. Qc6+ {[%clk 0:00:03]}  Qxc6 {[%clk 0:00:36]} 44. dxc6 {[%clk 0:00:04]}  Kxc6 {[%clk 0:00:35]} 45. h6 {[%clk 0:00:05]}  Bc4 {[%clk 0:00:35]} 46. bxc4 {[%clk 0:00:04]}  a4 {[%clk 0:00:35]} 47. h7 {[%clk 0:00:05]}  a3 {[%clk 0:00:36]} 48. h8=Q {[%clk 0:00:05]}  Kc5 {[%clk 0:00:37]} 49. Qxe5+ {[%clk 0:00:06]}  Kb4 {[%clk 0:00:37]} 50. Qa1 {[%clk 0:00:07]}  Kxc4 {[%clk 0:00:37]} 51. Kf4 {[%clk 0:00:07]}  Kb3 {[%clk 0:00:37]} 52. g4 {[%clk 0:00:08]}  a2 {[%clk 0:00:38]} 53. g5 {[%clk 0:00:09]} 1-0


[Site "https://www.chess.com"]